[Event "Late-Titled-Tuesday-Blitz-February-27-2024"]
[Site "Chess.com"]
[Date "2024.02.27"]
[Round "11"]
[White "EsmeraldasAnderson03"]
[Black "IngOscarArdila"]
[Result "1-0"]
[WhiteElo "2523"]
[BlackElo "2308"]
[TimeControl "180+1"]
[EndTime "16:05:46 PST"]
[Termination "EsmeraldasAnderson03 won on time"]

1. d4 {[%clk 0:02:58.2]} 1... Nf6 {[%clk 0:02:54.3]} 2. c4 {[%clk 0:02:50.8]}
2... e6 {[%clk 0:02:50]} 3. Nc3 {[%clk 0:02:47.6]} 3... Be7 {[%clk 0:02:44.1]}
4. e4 {[%clk 0:02:46.7]} 4... d6 {[%clk 0:02:41.6]} 5. Nf3 {[%clk 0:02:46.3]}
5... O-O {[%clk 0:02:41.1]} 6. Bd3 {[%clk 0:02:46]} 6... Nbd7 {[%clk 0:02:41]}
7. e5 {[%clk 0:02:43.2]} 7... Ne8 {[%clk 0:02:39.2]} 8. Qe2 {[%clk 0:02:41.5]}
8... dxe5 {[%clk 0:02:35.5]} 9. Nxe5 {[%clk 0:02:42.4]} 9... Nef6 {[%clk
0:02:30.8]} 10. O-O {[%clk 0:02:41.6]} 10... c6 {[%clk 0:02:28.8]} 11. Bg5
{[%clk 0:02:33.2]} 11... h6 {[%clk 0:02:17.6]} 12. Bh4 {[%clk 0:02:29.7]} 12...
Qc7 {[%clk 0:02:13]} 13. Bg3 {[%clk 0:02:28.3]} 13... Qb6 {[%clk 0:02:10.1]} 14.
Rad1 {[%clk 0:02:24.8]} 14... Re8 {[%clk 0:02:07]} 15. Bb1 {[%clk 0:02:24.3]}
15... Nf8 {[%clk 0:02:05.9]} 16. Rfe1 {[%clk 0:02:23.4]} 16... Qb4 {[%clk
0:02:01.8]} 17. a3 {[%clk 0:02:21.4]} 17... Qb6 {[%clk 0:01:59.5]} 18. h3 {[%clk
0:02:16.9]} 18... Rd8 {[%clk 0:01:59.3]} 19. Qd3 {[%clk 0:02:11.8]} 19... Qb3
{[%clk 0:01:49.2]} 20. Qe2 {[%clk 0:02:07.7]} 20... Qb6 {[%clk 0:01:45.2]} 21.
c5 {[%clk 0:02:04.6]} 21... Qa5 {[%clk 0:01:43.5]} 22. Nc4 {[%clk 0:02:01.6]}
22... Qa6 {[%clk 0:01:39.8]} 23. Bd3 {[%clk 0:02:00.3]} 23... b5 {[%clk
0:01:20.6]} 24. cxb6 {[%clk 0:01:25]} 24... axb6 {[%clk 0:01:17.8]} 25. Bc7
{[%clk 0:01:25.1]} 25... Qb7 {[%clk 0:00:47.8]} 26. Bxd8 {[%clk 0:01:14.3]}
26... Bxd8 {[%clk 0:00:48.7]} 27. Nd6 {[%clk 0:01:12.7]} 27... Qc7 {[%clk
0:00:44.6]} 28. Nxc8 {[%clk 0:01:13.1]} 28... Rxc8 {[%clk 0:00:44.8]} 29. Rc1
{[%clk 0:01:11.9]} 29... Qb8 {[%clk 0:00:43.9]} 30. Ne4 {[%clk 0:01:10.8]} 30...
Nd5 {[%clk 0:00:39.2]} 31. Qf3 {[%clk 0:01:09.5]} 31... Be7 {[%clk 0:00:35.6]}
32. Bb1 {[%clk 0:01:03.9]} 32... Nd7 {[%clk 0:00:31]} 33. Nc3 {[%clk 0:00:56.9]}
33... N7f6 {[%clk 0:00:28.7]} 34. Nxd5 {[%clk 0:00:55.7]} 34... cxd5 {[%clk
0:00:28.9]} 35. Qe3 {[%clk 0:00:54]} 35... Rc7 {[%clk 0:00:21.2]} 36. Rxc7
{[%clk 0:00:53.9]} 36... Qxc7 {[%clk 0:00:21.5]} 37. Rc1 {[%clk 0:00:54.5]}
37... Qd6 {[%clk 0:00:21.4]} 38. Qe5 {[%clk 0:00:55.1]} 38... Qd7 {[%clk
0:00:20.3]} 39. Qc7 {[%clk 0:00:47.4]} 39... Qxc7 {[%clk 0:00:08.1]} 40. Rxc7
{[%clk 0:00:48.3]} 40... Kf8 {[%clk 0:00:07.5]} 41. Rc8+ {[%clk 0:00:47.5]}
41... Ne8 {[%clk 0:00:07.6]} 42. Bc2 {[%clk 0:00:48]} 42... b5 {[%clk
0:00:03.3]} 43. Bd3 {[%clk 0:00:48]} 43... f6 {[%clk 0:00:01.9]} 44. Bg6 {[%clk
0:00:48]} 1-0

[Event "Late-Titled-Tuesday-Blitz-February-27-2024"]
[Site "Chess.com"]
[Date "2024.02.27"]
[Round "11"]
[White "Kirill_Klukin"]
[Black "gahryman"]
[Result "0-1"]
[WhiteElo "2832"]
[BlackElo "2712"]
[TimeControl "180+1"]
[EndTime "16:05:47 PST"]
[Termination "gahryman won on time"]

1. d4 {[%clk 0:02:54.9]} 1... Nf6 {[%clk 0:02:59.4]} 2. Nf3 {[%clk 0:02:53.5]}
2... e6 {[%clk 0:02:59.7]} 3. e3 {[%clk 0:02:53.7]} 3... b6 {[%clk 0:02:56.9]}
4. Bd3 {[%clk 0:02:54.3]} 4... Bb7 {[%clk 0:02:56.8]} 5. O-O {[%clk 0:02:55]}
5... d5 {[%clk 0:02:52.3]} 6. b3 {[%clk 0:02:54.6]} 6... Bd6 {[%clk 0:02:49.4]}
7. Bb2 {[%clk 0:02:54.7]} 7... O-O {[%clk 0:02:45.4]} 8. Nbd2 {[%clk 0:02:55.4]}
8... Ne4 {[%clk 0:02:43.4]} 9. c4 {[%clk 0:02:54.8]} 9... Nd7 {[%clk 0:02:41.1]}
10. Qc2 {[%clk 0:02:54.5]} 10... f5 {[%clk 0:02:38.5]} 11. cxd5 {[%clk
0:02:54.7]} 11... exd5 {[%clk 0:02:37.6]} 12. Ne5 {[%clk 0:02:55.5]} 12... c5
{[%clk 0:02:11.3]} 13. Rfd1 {[%clk 0:02:29.2]} 13... cxd4 {[%clk 0:02:02.8]} 14.
exd4 {[%clk 0:02:12.4]} 14... Rc8 {[%clk 0:02:00.9]} 15. Qb1 {[%clk 0:02:12.6]}
15... Nxe5 {[%clk 0:01:47.9]} 16. dxe5 {[%clk 0:02:10]} 16... Bc5 {[%clk
0:01:45.9]} 17. Bxe4 {[%clk 0:02:07.7]} 17... fxe4 {[%clk 0:01:38.8]} 18. Nxe4
{[%clk 0:02:08]} 18... Qh4 {[%clk 0:01:38.8]} 19. Nxc5 {[%clk 0:01:58.7]} 19...
Qxf2+ {[%clk 0:01:33.6]} 20. Kh1 {[%clk 0:01:59.4]} 20... bxc5 {[%clk
0:01:32.2]} 21. Rf1 {[%clk 0:01:52.1]} 21... Qe2 {[%clk 0:01:09.1]} 22. Re1
{[%clk 0:01:48.7]} 22... Qg4 {[%clk 0:00:59.9]} 23. Qc2 {[%clk 0:01:14.6]} 23...
d4 {[%clk 0:00:57.5]} 24. Qe2 {[%clk 0:01:15.2]} 24... Rf3 {[%clk 0:00:23.5]}
25. e6 {[%clk 0:00:56.7]} 25... Re8 {[%clk 0:00:23.3]} 26. Rac1 {[%clk
0:00:53.5]} 26... Bd5 {[%clk 0:00:17.7]} 27. Rf1 {[%clk 0:00:23.8]} 27... Rxe6
{[%clk 0:00:12.3]} 28. Qxf3 {[%clk 0:00:02.6]} 28... Bxf3 {[%clk 0:00:11.3]} 29.
Rxf3 {[%clk 0:00:03.5]} 29... Re2 {[%clk 0:00:10.5]} 30. Rg3 {[%clk 0:00:04]}
30... Qe4 {[%clk 0:00:10.3]} 0-1

[Event "Late-Titled-Tuesday-Blitz-February-27-2024"]
[Site "Chess.com"]
[Date "2024.02.27"]
[Round "11"]
[White "miraitrunks"]
[Black "morte-negra"]
[Result "1-0"]
[WhiteElo "2208"]
[BlackElo "2050"]
[TimeControl "180+1"]
[EndTime "16:05:48 PST"]
[Termination "miraitrunks won on time"]

1. e4 {[%clk 0:02:43.7]} 1... c5 {[%clk 0:02:58.7]} 2. Nf3 {[%clk 0:02:41.9]}
2... d6 {[%clk 0:02:58.9]} 3. d4 {[%clk 0:02:42.2]} 3... cxd4 {[%clk 0:02:59.5]}
4. Nxd4 {[%clk 0:02:43.1]} 4... Nf6 {[%clk 0:02:59.7]} 5. Nc3 {[%clk 0:02:43.8]}
5... a6 {[%clk 0:03:00.2]} 6. Qf3 {[%clk 0:02:41.6]} 6... e6 {[%clk 0:02:57.9]}
7. Bg5 {[%clk 0:02:40.1]} 7... Nbd7 {[%clk 0:02:57.1]} 8. O-O-O {[%clk
0:02:38.6]} 8... Qc7 {[%clk 0:02:56.6]} 9. Qg3 {[%clk 0:02:28.5]} 9... h6 {[%clk
0:02:45.2]} 10. Bxf6 {[%clk 0:02:27.2]} 10... Nxf6 {[%clk 0:02:43.5]} 11. f4
{[%clk 0:02:23.8]} 11... Nd7 {[%clk 0:02:08.3]} 12. Be2 {[%clk 0:01:57.9]} 12...
Rb8 {[%clk 0:02:07.8]} 13. Rhf1 {[%clk 0:01:56.9]} 13... b5 {[%clk 0:02:07.4]}
14. f5 {[%clk 0:01:55.6]} 14... Nc5 {[%clk 0:01:58.1]} 15. fxe6 {[%clk
0:01:46.3]} 15... fxe6 {[%clk 0:01:57.4]} 16. Bh5+ {[%clk 0:01:45.6]} 16... Kd8
{[%clk 0:01:53.4]} 17. Rf7 {[%clk 0:01:41.4]} 17... Bd7 {[%clk 0:01:34.4]} 18.
e5 {[%clk 0:01:24]} 18... d5 {[%clk 0:01:26.3]} 19. Nxe6+ {[%clk 0:01:19.6]}
19... Nxe6 {[%clk 0:01:17.4]} 20. Rxd5 {[%clk 0:01:11.9]} 20... Rc8 {[%clk
0:01:10]} 21. Rfxd7+ {[%clk 0:01:05.7]} 21... Qxd7 {[%clk 0:01:10.1]} 22. Rxd7+
{[%clk 0:01:06]} 22... Kxd7 {[%clk 0:01:10.7]} 23. Bg4 {[%clk 0:01:06.3]} 23...
Rc6 {[%clk 0:01:06.5]} 24. Nd5 {[%clk 0:01:01.1]} 24... Be7 {[%clk 0:00:51.3]}
25. h4 {[%clk 0:00:56.6]} 25... Rhc8 {[%clk 0:00:49.8]} 26. Bxe6+ {[%clk
0:00:46.4]} 26... Kxe6 {[%clk 0:00:41.4]} 27. Nxe7 {[%clk 0:00:40.7]} 27...
Rxc2+ {[%clk 0:00:38.6]} 28. Kd1 {[%clk 0:00:40.9]} 28... Rc1+ {[%clk
0:00:36.4]} 29. Kd2 {[%clk 0:00:38.3]} 29... R8c2+ {[%clk 0:00:34.9]} 30. Kd3
{[%clk 0:00:38.6]} 30... Kxe7 {[%clk 0:00:33.1]} 31. Qxg7+ {[%clk 0:00:38.6]}
31... Ke6 {[%clk 0:00:33]} 32. Qf6+ {[%clk 0:00:38.4]} 32... Kd7 {[%clk
0:00:31.7]} 33. e6+ {[%clk 0:00:37.8]} 33... Kc7 {[%clk 0:00:26.7]} 34. e7
{[%clk 0:00:37.9]} 34... Rc4 {[%clk 0:00:08.4]} 35. Qe5+ {[%clk 0:00:35.2]}
35... Kb6 {[%clk 0:00:05.7]} 36. Qd6+ {[%clk 0:00:30]} 36... Kb7 {[%clk
0:00:02.4]} 37. Qd7+ {[%clk 0:00:29.9]} 37... Kb6 {[%clk 0:00:02]} 38. Qd8+
{[%clk 0:00:30]} 38... Kb7 {[%clk 0:00:01.5]} 39. e8=Q {[%clk 0:00:30.5]} 1-0

[Event "Late-Titled-Tuesday-Blitz-February-27-2024"]
[Site "Chess.com"]
[Date "2024.02.27"]
[Round "11"]
[White "temus_galaktionov"]
[Black "nindjaxx8"]
[Result "1-0"]
[WhiteElo "2919"]
[BlackElo "2706"]
[TimeControl "180+1"]
[EndTime "16:05:51 PST"]
[Termination "temus_galaktionov won on time"]

1. d4 {[%clk 0:03:00.9]} 1... d5 {[%clk 0:02:42.6]} 2. c4 {[%clk 0:02:59.9]}
2... e6 {[%clk 0:02:42.7]} 3. Nf3 {[%clk 0:02:59.7]} 3... Nf6 {[%clk 0:02:42.1]}
4. Nc3 {[%clk 0:02:59.6]} 4... Be7 {[%clk 0:02:39.9]} 5. Bf4 {[%clk 0:02:58.9]}
5... O-O {[%clk 0:02:40.3]} 6. e3 {[%clk 0:02:58.2]} 6... b6 {[%clk 0:02:41]} 7.
Bd3 {[%clk 0:02:57.5]} 7... dxc4 {[%clk 0:02:41.4]} 8. Bxc4 {[%clk 0:02:58.4]}
8... Bb7 {[%clk 0:02:42.1]} 9. O-O {[%clk 0:02:57.7]} 9... Nbd7 {[%clk
0:02:42.7]} 10. Qe2 {[%clk 0:02:55.7]} 10... c5 {[%clk 0:02:41.8]} 11. Rfd1
{[%clk 0:02:55.4]} 11... cxd4 {[%clk 0:02:41.9]} 12. Rxd4 {[%clk 0:02:53.6]}
12... Bc5 {[%clk 0:02:40.8]} 13. Rd2 {[%clk 0:02:52.7]} 13... Qe7 {[%clk
0:02:40.4]} 14. Rad1 {[%clk 0:02:52.6]} 14... Rfd8 {[%clk 0:02:40.9]} 15. a3
{[%clk 0:02:52.7]} 15... a5 {[%clk 0:02:40.5]} 16. Na4 {[%clk 0:02:44.2]} 16...
Nf8 {[%clk 0:02:21.9]} 17. Nxc5 {[%clk 0:02:42.6]} 17... Rxd2 {[%clk 0:02:14.4]}
18. Qxd2 {[%clk 0:02:38.9]} 18... Qxc5 {[%clk 0:02:09.7]} 19. Be2 {[%clk
0:02:32]} 19... Ne4 {[%clk 0:02:04.1]} 20. Qc1 {[%clk 0:02:19.2]} 20... Qxc1
{[%clk 0:01:33.5]} 21. Rxc1 {[%clk 0:02:20.1]} 21... Rd8 {[%clk 0:01:33.3]} 22.
Nd4 {[%clk 0:02:06.9]} 22... Ng6 {[%clk 0:01:19.3]} 23. Bc7 {[%clk 0:02:03]}
23... Rc8 {[%clk 0:01:19.4]} 24. Rc2 {[%clk 0:02:01.7]} 24... e5 {[%clk
0:01:05.6]} 25. Nb5 {[%clk 0:01:56.7]} 25... Ne7 {[%clk 0:00:30.5]} 26. Na7
{[%clk 0:01:55.4]} 26... Ra8 {[%clk 0:00:30.2]} 27. Nb5 {[%clk 0:01:46.3]} 27...
Rc8 {[%clk 0:00:29.4]} 28. Bd1 {[%clk 0:01:41.7]} 28... Nd5 {[%clk 0:00:25.6]}
29. Bxe5 {[%clk 0:01:40.8]} 29... Re8 {[%clk 0:00:23.6]} 30. Bd4 {[%clk
0:01:40.2]} 30... h6 {[%clk 0:00:13.8]} 31. Nc7 {[%clk 0:01:39.8]} 31... Nxc7
{[%clk 0:00:13.5]} 32. Rxc7 {[%clk 0:01:40.7]} 32... b5 {[%clk 0:00:13.3]} 33.
Be2 {[%clk 0:01:39.6]} 33... b4 {[%clk 0:00:12.8]} 34. a4 {[%clk 0:01:39.2]}
34... Bd5 {[%clk 0:00:11.7]} 35. Bb5 {[%clk 0:01:38.4]} 35... Rd8 {[%clk
0:00:09.5]} 36. f3 {[%clk 0:01:37.3]} 36... Nd6 {[%clk 0:00:08]} 37. Bd3 {[%clk
0:01:37.9]} 37... Bb3 {[%clk 0:00:07]} 38. Rc5 {[%clk 0:01:30.9]} 38... Bxa4
{[%clk 0:00:06.3]} 39. Rxa5 {[%clk 0:01:30.7]} 39... Bd7 {[%clk 0:00:05.4]} 40.
Kf2 {[%clk 0:01:28.5]} 40... Be6 {[%clk 0:00:05.1]} 41. Rc5 {[%clk 0:01:25.2]}
41... Ra8 {[%clk 0:00:04.5]} 42. g4 {[%clk 0:01:20.9]} 42... Ra2 {[%clk
0:00:02.9]} 43. Rc6 {[%clk 0:01:19.8]} 43... Ne8 {[%clk 0:00:02.9]} 44. Rb6
{[%clk 0:01:18.5]} 44... Kf8 {[%clk 0:00:03.3]} 45. Rxb4 {[%clk 0:01:14.6]}
45... Nc7 {[%clk 0:00:03.8]} 46. Rb8+ {[%clk 0:01:10.8]} 46... Ke7 {[%clk
0:00:02.5]} 47. Bxg7 {[%clk 0:01:10.6]} 47... Nd5 {[%clk 0:00:02.6]} 48. Bxh6
{[%clk 0:01:09.1]} 48... Kd7 {[%clk 0:00:02.8]} 49. Bg7 {[%clk 0:01:08.7]} 49...
f6 {[%clk 0:00:03.1]} 50. Bc4 {[%clk 0:01:05.2]} 50... Ra4 {[%clk 0:00:02.5]}
51. Bb5+ {[%clk 0:01:04.3]} 51... Kc7 {[%clk 0:00:02.4]} 52. Bxa4 {[%clk
0:01:03.9]} 52... Kxb8 {[%clk 0:00:03.1]} 53. e4 {[%clk 0:01:04.1]} 53... Nf4
{[%clk 0:00:03.2]} 54. Bxf6 {[%clk 0:01:04]} 54... Nd3+ {[%clk 0:00:03.7]} 55.
Ke3 {[%clk 0:01:03.7]} 55... Nxb2 {[%clk 0:00:04.6]} 56. Bxb2 {[%clk 0:01:02.8]}
1-0

[Event "Late-Titled-Tuesday-Blitz-February-27-2024"]
[Site "Chess.com"]
[Date "2024.02.27"]
[Round "11"]
[White "farzadbfd"]
[Black "wild3000"]
[Result "1-0"]
[WhiteElo "2681"]
[BlackElo "2500"]
[TimeControl "180+1"]
[EndTime "16:05:51 PST"]
[Termination "farzadbfd won by resignation"]

1. e4 {[%clk 0:03:00.9]} 1... e5 {[%clk 0:02:59.4]} 2. Nf3 {[%clk 0:03:00.9]}
2... Nc6 {[%clk 0:02:57.2]} 3. Bc4 {[%clk 0:03:00.9]} 3... Be7 {[%clk
0:02:56.4]} 4. O-O {[%clk 0:03:00.5]} 4... d6 {[%clk 0:02:55.7]} 5. c3 {[%clk
0:02:59.9]} 5... Be6 {[%clk 0:02:36.7]} 6. Bxe6 {[%clk 0:02:58.7]} 6... fxe6
{[%clk 0:02:36.7]} 7. d4 {[%clk 0:02:59.6]} 7... exd4 {[%clk 0:02:36.5]} 8. cxd4
{[%clk 0:02:56.2]} 8... Nf6 {[%clk 0:02:29.5]} 9. d5 {[%clk 0:02:48.8]} 9... Ne5
{[%clk 0:02:19.4]} 10. Ng5 {[%clk 0:02:36.6]} 10... exd5 {[%clk 0:02:09.5]} 11.
Ne6 {[%clk 0:02:19.4]} 11... Qd7 {[%clk 0:02:08.4]} 12. exd5 {[%clk 0:02:19.4]}
12... Kf7 {[%clk 0:01:53.6]} 13. Ng5+ {[%clk 0:02:15.9]} 13... Kg8 {[%clk
0:01:52.4]} 14. Nc3 {[%clk 0:02:08.9]} 14... h6 {[%clk 0:01:43.4]} 15. Ne6
{[%clk 0:02:08.5]} 15... c6 {[%clk 0:01:35.3]} 16. f4 {[%clk 0:02:06.5]} 16...
Nf7 {[%clk 0:01:31.1]} 17. Re1 {[%clk 0:02:03.9]} 17... Kh7 {[%clk 0:01:18.4]}
18. Qd3+ {[%clk 0:01:33.3]} 18... g6 {[%clk 0:01:17.7]} 19. Be3 {[%clk
0:01:22.3]} 19... Rae8 {[%clk 0:01:09.6]} 20. Bd4 {[%clk 0:01:22.1]} 20... c5
{[%clk 0:01:03.8]} 21. Bxf6 {[%clk 0:01:18]} 21... Bxf6 {[%clk 0:01:03.7]} 22.
Re2 {[%clk 0:01:10.1]} 22... a6 {[%clk 0:00:56]} 23. Rae1 {[%clk 0:01:08]} 23...
b5 {[%clk 0:00:55.8]} 24. Kh1 {[%clk 0:01:03.6]} 24... Nd8 {[%clk 0:00:33.8]}
25. Qh3 {[%clk 0:00:57.1]} 25... Nxe6 {[%clk 0:00:26.7]} 26. dxe6 {[%clk
0:00:56.5]} 26... Qc6 {[%clk 0:00:23.4]} 27. f5 {[%clk 0:00:51.1]} 27... Rhg8
{[%clk 0:00:17.5]} 28. Ne4 {[%clk 0:00:48.8]} 28... Be5 {[%clk 0:00:13.7]} 29.
f6 {[%clk 0:00:44.1]} 29... Rgf8 {[%clk 0:00:12.1]} 30. Ng5+ {[%clk 0:00:43.1]}
30... Kg8 {[%clk 0:00:09.4]} 31. f7+ {[%clk 0:00:43.2]} 31... Kg7 {[%clk
0:00:08.5]} 32. fxe8=Q {[%clk 0:00:42.9]} 32... Qxe8 {[%clk 0:00:08.7]} 33. Nf7
{[%clk 0:00:42.1]} 33... Rxf7 {[%clk 0:00:04.9]} 34. exf7 {[%clk 0:00:42.1]}
34... Qxf7 {[%clk 0:00:05.8]} 35. b3 {[%clk 0:00:37.1]} 35... a5 {[%clk
0:00:05.3]} 36. Qf3 {[%clk 0:00:36.5]} 36... Qxf3 {[%clk 0:00:03.7]} 37. gxf3
{[%clk 0:00:36.6]} 37... g5 {[%clk 0:00:04.6]} 38. Rxe5 {[%clk 0:00:36.5]} 38...
dxe5 {[%clk 0:00:04.7]} 39. Rxe5 {[%clk 0:00:37.4]} 39... c4 {[%clk 0:00:05.4]}
40. Rxb5 {[%clk 0:00:37.5]} 40... c3 {[%clk 0:00:05.4]} 41. Rc5 {[%clk
0:00:37.9]} 41... a4 {[%clk 0:00:05.7]} 42. Rxc3 {[%clk 0:00:37.8]} 1-0

[Event "Late-Titled-Tuesday-Blitz-February-27-2024"]
[Site "Chess.com"]
[Date "2024.02.27"]
[Round "11"]
[White "GodzillaChessYoutube"]
[Black "KNVB"]
[Result "0-1"]
[WhiteElo "2638"]
[BlackElo "2812"]
[TimeControl "180+1"]
[EndTime "16:05:53 PST"]
[Termination "KNVB won on time"]

1. d4 {[%clk 0:03:00.9]} 1... e5 {[%clk 0:02:52]} 2. dxe5 {[%clk 0:03:00.6]}
2... Nc6 {[%clk 0:02:45.8]} 3. Nf3 {[%clk 0:03:01.1]} 3... Qe7 {[%clk
0:02:46.3]} 4. g3 {[%clk 0:03:00.1]} 4... Nxe5 {[%clk 0:02:46.3]} 5. Bg2 {[%clk
0:03:00.7]} 5... Nxf3+ {[%clk 0:02:43.3]} 6. Bxf3 {[%clk 0:03:01.6]} 6... Nf6
{[%clk 0:02:43.5]} 7. O-O {[%clk 0:03:01.6]} 7... g6 {[%clk 0:02:42.8]} 8. c4
{[%clk 0:03:00.6]} 8... Bg7 {[%clk 0:02:42.7]} 9. Nc3 {[%clk 0:03:01.2]} 9...
O-O {[%clk 0:02:42.6]} 10. Bg5 {[%clk 0:02:55.8]} 10... c6 {[%clk 0:02:31]} 11.
Bf4 {[%clk 0:02:36]} 11... Ne8 {[%clk 0:02:25.3]} 12. Qd2 {[%clk 0:02:32.2]}
12... d6 {[%clk 0:02:22.3]} 13. Rfd1 {[%clk 0:02:29.7]} 13... Be6 {[%clk
0:02:22.1]} 14. b3 {[%clk 0:02:27.4]} 14... Rd8 {[%clk 0:02:13.3]} 15. Rac1
{[%clk 0:02:27.5]} 15... f5 {[%clk 0:02:02.9]} 16. e4 {[%clk 0:02:07]} 16...
fxe4 {[%clk 0:01:33.6]} 17. Nxe4 {[%clk 0:02:00.6]} 17... d5 {[%clk 0:01:34]}
18. Ng5 {[%clk 0:01:48.3]} 18... Bf5 {[%clk 0:01:04.7]} 19. cxd5 {[%clk
0:01:43.5]} 19... h6 {[%clk 0:01:01.6]} 20. Re1 {[%clk 0:01:21.8]} 20... Qd7
{[%clk 0:00:54.5]} 21. Ne4 {[%clk 0:00:39]} 21... cxd5 {[%clk 0:00:38.3]} 22.
Nc5 {[%clk 0:00:38.7]} 22... Qf7 {[%clk 0:00:39.1]} 23. Bxh6 {[%clk 0:00:30.9]}
23... b6 {[%clk 0:00:27.7]} 24. Na6 {[%clk 0:00:22.1]} 24... Bc8 {[%clk
0:00:16.6]} 25. Rxe8 {[%clk 0:00:13.5]} 25... Rdxe8 {[%clk 0:00:11.4]} 26. Bxd5
{[%clk 0:00:11.6]} 26... Be6 {[%clk 0:00:10.2]} 27. Rc7 {[%clk 0:00:10.5]} 27...
Bxh6 {[%clk 0:00:04.3]} 28. Rxf7 {[%clk 0:00:04]} 28... Bxd2 {[%clk 0:00:04.2]}
29. Bxe6 {[%clk 0:00:03.7]} 29... Rxe6 {[%clk 0:00:04.1]} 30. Rxa7 {[%clk
0:00:03.6]} 30... Re2 {[%clk 0:00:03.1]} 0-1

[Event "Late-Titled-Tuesday-Blitz-February-27-2024"]
[Site "Chess.com"]
[Date "2024.02.27"]
[Round "11"]
[White "chessdjw"]
[Black "Mikhail_Golubev"]
[Result "1-0"]
[WhiteElo "2780"]
[BlackElo "2643"]
[TimeControl "180+1"]
[EndTime "16:05:55 PST"]
[Termination "chessdjw won by resignation"]

1. d4 {[%clk 0:03:00.9]} 1... Nf6 {[%clk 0:03:00]} 2. c4 {[%clk 0:03:01]} 2...
g6 {[%clk 0:03:00.3]} 3. Nc3 {[%clk 0:03:00.5]} 3... Bg7 {[%clk 0:03:00.5]} 4.
e4 {[%clk 0:03:00.9]} 4... d6 {[%clk 0:03:00.9]} 5. Nf3 {[%clk 0:02:58.6]} 5...
O-O {[%clk 0:03:00.9]} 6. Be2 {[%clk 0:02:59.1]} 6... e5 {[%clk 0:03:00.6]} 7.
O-O {[%clk 0:02:59.8]} 7... h6 {[%clk 0:03:00.8]} 8. d5 {[%clk 0:02:52.8]} 8...
a5 {[%clk 0:02:56.6]} 9. Ne1 {[%clk 0:02:43.7]} 9... Na6 {[%clk 0:02:51.8]} 10.
Nd3 {[%clk 0:02:44.2]} 10... Nd7 {[%clk 0:02:48.4]} 11. Be3 {[%clk 0:02:43.1]}
11... f5 {[%clk 0:02:44.8]} 12. f3 {[%clk 0:02:42]} 12... f4 {[%clk 0:02:39.8]}
13. Bf2 {[%clk 0:02:41.8]} 13... g5 {[%clk 0:02:40.2]} 14. a3 {[%clk 0:02:41.7]}
14... Nac5 {[%clk 0:02:34]} 15. b4 {[%clk 0:02:40.1]} 15... axb4 {[%clk
0:02:30.8]} 16. axb4 {[%clk 0:02:34.6]} 16... Rxa1 {[%clk 0:02:28.8]} 17. Qxa1
{[%clk 0:02:35.5]} 17... Nb3 {[%clk 0:02:28.5]} 18. Qa7 {[%clk 0:02:29.1]} 18...
Nd4 {[%clk 0:02:25.8]} 19. Bd1 {[%clk 0:02:14.3]} 19... Nf6 {[%clk 0:02:10.2]}
20. Nb5 {[%clk 0:01:55.8]} 20... Nxb5 {[%clk 0:01:40.4]} 21. cxb5 {[%clk
0:01:56.7]} 21... b6 {[%clk 0:01:39.9]} 22. Be2 {[%clk 0:01:52.7]} 22... h5
{[%clk 0:01:34.1]} 23. Rc1 {[%clk 0:01:52.7]} 23... Ne8 {[%clk 0:01:34.3]} 24.
Qb8 {[%clk 0:01:42.4]} 24... Bf6 {[%clk 0:01:18.7]} 25. Bxb6 {[%clk 0:01:36.6]}
25... cxb6 {[%clk 0:01:16.3]} 26. Rxc8 {[%clk 0:01:24.1]} 26... Qd7 {[%clk
0:01:16.2]} 27. Nb2 {[%clk 0:01:20]} 27... g4 {[%clk 0:00:56]} 28. Rc6 {[%clk
0:00:24.5]} 28... h4 {[%clk 0:00:53.2]} 29. fxg4 {[%clk 0:00:19.7]} 29... h3
{[%clk 0:00:52.8]} 30. Nc4 {[%clk 0:00:17.4]} 30... hxg2 {[%clk 0:00:48.1]} 31.
Kxg2 {[%clk 0:00:16.9]} 31... Qh7 {[%clk 0:00:32.8]} 32. Bf3 {[%clk 0:00:17.2]}
32... Qh4 {[%clk 0:00:28.2]} 33. Rc8 {[%clk 0:00:14.5]} 33... Kf7 {[%clk
0:00:12.2]} 34. Rxe8 {[%clk 0:00:14.7]} 34... Rxe8 {[%clk 0:00:10.6]} 35. Nxd6+
{[%clk 0:00:15.2]} 35... Kg7 {[%clk 0:00:10]} 36. Qxe8 {[%clk 0:00:12]} 36...
Qe1 {[%clk 0:00:07.3]} 37. Qf7+ {[%clk 0:00:11.8]} 1-0